[Event "Titled Tuesday Blitz April 12 Late 2022"]
[White "Papp, Levente"]
[Black "Tari, Aryan"]
[WhiteFideId "751243"]
[BlackFideId "1510045"]
[WhiteElo "2308"]
[BlackElo "2567"]
[Result "0-1"]
[Round "04"]
[TimeControl "180+1"]
[Date "2022.04.12"]
[WhiteClock "0:00:03"]
[BlackClock "0:00:41"]

1. c4 {[%clk 0:03:00]}  c6 {[%clk 0:02:54]} 2. e4 {[%clk 0:02:57]}  d5 {[%clk 0:02:54]} 3. exd5 {[%clk 0:02:58]}  cxd5 {[%clk 0:02:54]} 4. d4 {[%clk 0:02:58]}  Nf6 {[%clk 0:02:55]} 5. Nc3 {[%clk 0:02:58]}  g6 {[%clk 0:02:54]} 6. Qb3 {[%clk 0:02:57]}  Bg7 {[%clk 0:02:53]} 7. cxd5 {[%clk 0:02:57]}  O-O {[%clk 0:02:54]} 8. Be2 {[%clk 0:02:58]}  Na6 {[%clk 0:02:54]} 9. Bf3 {[%clk 0:02:58]}  Qb6 {[%clk 0:02:55]} 10. Nge2 {[%clk 0:02:56]}  Rd8 {[%clk 0:02:49]} 11. Qxb6 {[%clk 0:02:55]}  axb6 {[%clk 0:02:49]} 12. Bf4 {[%clk 0:02:24]}  Nb4 {[%clk 0:02:46]} 13. O-O {[%clk 0:02:24]}  Nfxd5 {[%clk 0:02:43]} 14. Nxd5 {[%clk 0:02:21]}  Nxd5 {[%clk 0:02:44]} 15. Be5 {[%clk 0:02:18]}  Be6 {[%clk 0:02:40]} 16. a3 {[%clk 0:02:10]}  Rac8 {[%clk 0:02:31]} 17. Bxg7 {[%clk 0:02:02]}  Kxg7 {[%clk 0:02:31]} 18. Rac1 {[%clk 0:02:03]}  Kf8 {[%clk 0:01:53]} 19. g3 {[%clk 0:01:54]}  Ke8 {[%clk 0:01:53]} 20. Rfd1 {[%clk 0:01:42]}  Rc6 {[%clk 0:01:52]} 21. Kf1 {[%clk 0:01:22]}  Rdc8 {[%clk 0:01:51]} 22. Ke1 {[%clk 0:01:22]}  Kd7 {[%clk 0:01:47]} 23. Kd2 {[%clk 0:01:21]}  g5 {[%clk 0:01:48]} 24. Bxd5 {[%clk 0:01:12]}  Bxd5 {[%clk 0:01:48]} 25. Nc3 {[%clk 0:01:13]}  Bf3 {[%clk 0:01:40]} 26. Re1 {[%clk 0:01:13]}  Rh6 {[%clk 0:01:39]} 27. Na4 {[%clk 0:00:53]}  Rxc1 {[%clk 0:01:27]} 28. Rxc1 {[%clk 0:00:54]}  g4 {[%clk 0:01:17]} 29. Rc3 {[%clk 0:00:41]}  Rxh2 {[%clk 0:01:14]} 30. Nxb6+ {[%clk 0:00:41]}  Ke6 {[%clk 0:01:14]} 31. Ke3 {[%clk 0:00:40]}  Rh1 {[%clk 0:01:12]} 32. Kf4 {[%clk 0:00:31]}  Rf1 {[%clk 0:01:07]} 33. Re3+ {[%clk 0:00:30]}  Kf6 {[%clk 0:00:57]} 34. Nd7+ {[%clk 0:00:28]}  Kg7 {[%clk 0:00:57]} 35. Rxe7 {[%clk 0:00:28]}  Rxf2 {[%clk 0:00:58]} 36. Ne5 {[%clk 0:00:23]}  Bd5+ {[%clk 0:00:58]} 37. Kxg4 {[%clk 0:00:18]}  Kf6 {[%clk 0:00:56]} 38. Re8 {[%clk 0:00:06]}  Be6+ {[%clk 0:00:54]} 39. Rxe6+ {[%clk 0:00:04]}  Kxe6 {[%clk 0:00:55]} 40. b4 {[%clk 0:00:03]}  Ra2 {[%clk 0:00:48]} 41. Nd3 {[%clk 0:00:03]}  b6 {[%clk 0:00:44]} 42. Nf4+ {[%clk 0:00:03]}  Kd6 {[%clk 0:00:44]} 43. Kf5 {[%clk 0:00:04]}  Rxa3 {[%clk 0:00:44]} 44. g4 {[%clk 0:00:05]}  Rb3 {[%clk 0:00:42]} 45. Kf6 {[%clk 0:00:05]}  Rxb4 {[%clk 0:00:42]} 46. g5 {[%clk 0:00:03]}  Rxd4 {[%clk 0:00:42]} 47. Nh5 {[%clk 0:00:03]}  Rh4 {[%clk 0:00:41]} 48. Ng7 {[%clk 0:00:03]}  Rf4+ {[%clk 0:00:41]} 49. Nf5+ {[%clk 0:00:03]}  Kd5 {[%clk 0:00:41]} 0-1


[Site "https://www.chess.com"]

[Event "Titled Tuesday Blitz April 12 Late 2022"]
[White "Przybylski, Wojciech"]
[Black "Hardaway, Brewington"]
[WhiteFideId "1117599"]
[BlackFideId "30941849"]
[WhiteElo "2133"]
[BlackElo "1768"]
[Result "1/2-1/2"]
[Round "04"]
[TimeControl "180+1"]
[Date "2022.04.13"]
[WhiteClock "0:00:05"]
[BlackClock "0:00:08"]

1. d4 {[%clk 0:03:00]}  Nf6 {[%clk 0:02:25]} 2. c4 {[%clk 0:02:58]}  e6 {[%clk 0:02:25]} 3. Nf3 {[%clk 0:02:57]}  b6 {[%clk 0:02:25]} 4. g3 {[%clk 0:02:56]}  Bb7 {[%clk 0:02:26]} 5. Bg2 {[%clk 0:02:56]}  h6 {[%clk 0:02:26]} 6. O-O {[%clk 0:02:56]}  Be7 {[%clk 0:02:26]} 7. Nc3 {[%clk 0:02:54]}  O-O {[%clk 0:02:27]} 8. Qc2 {[%clk 0:02:54]}  c5 {[%clk 0:02:26]} 9. e3 {[%clk 0:02:48]}  d5 {[%clk 0:02:25]} 10. b3 {[%clk 0:02:47]}  dxc4 {[%clk 0:02:24]} 11. bxc4 {[%clk 0:02:47]}  Nc6 {[%clk 0:02:25]} 12. Bb2 {[%clk 0:02:46]}  cxd4 {[%clk 0:02:25]} 13. exd4 {[%clk 0:02:46]}  Nxd4 {[%clk 0:02:25]} 14. Nxd4 {[%clk 0:02:44]}  Bxg2 {[%clk 0:02:26]} 15. Nxe6 {[%clk 0:02:42]}  Qc8 {[%clk 0:02:20]} 16. Kxg2 {[%clk 0:02:35]}  Qc6+ {[%clk 0:02:12]} 17. Kg1 {[%clk 0:02:24]}  fxe6 {[%clk 0:02:12]} 18. Ne2 {[%clk 0:02:17]}  Bc5 {[%clk 0:02:08]} 19. Nd4 {[%clk 0:02:16]}  Qe4 {[%clk 0:02:07]} 20. Qxe4 {[%clk 0:02:11]}  Nxe4 {[%clk 0:02:08]} 21. Nxe6 {[%clk 0:02:04]}  Rxf2 {[%clk 0:02:06]} 22. Rxf2 {[%clk 0:02:04]}  Bxf2+ {[%clk 0:01:54]} 23. Kg2 {[%clk 0:02:04]}  Bc5 {[%clk 0:01:47]} 24. Nxg7 {[%clk 0:01:58]}  Rf8 {[%clk 0:01:45]} 25. Rf1 {[%clk 0:01:41]}  Rxf1 {[%clk 0:01:44]} 26. Kxf1 {[%clk 0:01:42]}  Nd2+ {[%clk 0:01:44]} 27. Ke2 {[%clk 0:01:40]}  Nxc4 {[%clk 0:01:45]} 28. Bc3 {[%clk 0:01:30]}  Kf7 {[%clk 0:01:30]} 29. Nf5 {[%clk 0:01:28]}  h5 {[%clk 0:01:26]} 30. Kd3 {[%clk 0:01:26]}  Na3 {[%clk 0:01:23]} 31. Ng7 {[%clk 0:01:17]}  Kg6 {[%clk 0:01:21]} 32. Ne6 {[%clk 0:01:14]}  Bd6 {[%clk 0:01:18]} 33. Ke4 {[%clk 0:00:58]}  Nb5 {[%clk 0:01:07]} 34. Be1 {[%clk 0:00:55]}  Kf6 {[%clk 0:00:56]} 35. Nf4 {[%clk 0:00:49]}  Kg5 {[%clk 0:00:51]} 36. Nh3+ {[%clk 0:00:45]}  Kg6 {[%clk 0:00:47]} 37. Nf4+ {[%clk 0:00:41]}  Bxf4 {[%clk 0:00:41]} 38. gxf4 {[%clk 0:00:39]}  Nd6+ {[%clk 0:00:40]} 39. Ke5 {[%clk 0:00:39]}  Nf5 {[%clk 0:00:40]} 40. Bf2 {[%clk 0:00:37]}  Ng7 {[%clk 0:00:33]} 41. Bh4 {[%clk 0:00:31]}  b5 {[%clk 0:00:27]} 42. Bd8 {[%clk 0:00:28]}  a6 {[%clk 0:00:25]} 43. Ba5 {[%clk 0:00:23]}  Nf5 {[%clk 0:00:24]} 44. Be1 {[%clk 0:00:22]}  Ne3 {[%clk 0:00:24]} 45. h3 {[%clk 0:00:21]}  Nc4+ {[%clk 0:00:23]} 46. Ke6 {[%clk 0:00:20]}  Ne3 {[%clk 0:00:23]} 47. Bh4 {[%clk 0:00:18]}  Nf5 {[%clk 0:00:18]} 48. Be1 {[%clk 0:00:17]}  Ng7+ {[%clk 0:00:17]} 49. Ke5 {[%clk 0:00:16]}  Nf5 {[%clk 0:00:15]} 50. Bf2 {[%clk 0:00:15]}  Nh6 {[%clk 0:00:12]} 51. Bb6 {[%clk 0:00:13]}  Nf7+ {[%clk 0:00:12]} 52. Ke6 {[%clk 0:00:12]}  Nh6 {[%clk 0:00:12]} 53. Bd8 {[%clk 0:00:11]}  Nf5 {[%clk 0:00:11]} 54. Bb6 {[%clk 0:00:11]}  b4 {[%clk 0:00:11]} 55. Ba5 {[%clk 0:00:10]}  b3 {[%clk 0:00:09]} 56. axb3 {[%clk 0:00:09]}  Nd4+ {[%clk 0:00:10]} 57. Ke5 {[%clk 0:00:08]}  Nxb3 {[%clk 0:00:10]} 58. f5+ {[%clk 0:00:08]}  Kf7 {[%clk 0:00:11]} 59. Bc3 {[%clk 0:00:07]}  Nc5 {[%clk 0:00:11]} 60. Kd5 {[%clk 0:00:07]}  Nd3 {[%clk 0:00:11]} 61. Ke4 {[%clk 0:00:06]}  Nf2+ {[%clk 0:00:11]} 62. Kf3 {[%clk 0:00:06]}  Nxh3 {[%clk 0:00:11]} 63. Kg3 {[%clk 0:00:07]}  Ng5 {[%clk 0:00:10]} 64. Kh4 {[%clk 0:00:07]}  Ne4 {[%clk 0:00:11]} 65. Bb2 {[%clk 0:00:05]}  Nd6 {[%clk 0:00:09]} 66. f6 {[%clk 0:00:04]}  Ne4 {[%clk 0:00:07]} 67. Kxh5 {[%clk 0:00:04]}  Nxf6+ {[%clk 0:00:08]} 68. Kg5 {[%clk 0:00:04]}  Nd5 {[%clk 0:00:09]} 69. Kf5 {[%clk 0:00:05]}  Ke7 {[%clk 0:00:09]} 70. Ke5 {[%clk 0:00:05]}  Nc7 {[%clk 0:00:09]} 71. Kd4 {[%clk 0:00:05]}  Kd7 {[%clk 0:00:10]} 72. Kc5 {[%clk 0:00:05]}  Kc8 {[%clk 0:00:07]} 73. Kb6 {[%clk 0:00:05]}  Kd7 {[%clk 0:00:07]} 74. Be5 {[%clk 0:00:05]}  a5 {[%clk 0:00:08]} 75. Kxa5 {[%clk 0:00:05]} 1/2-1/2


[Site "https://www.chess.com"]

[Event "Titled Tuesday Blitz April 12 Late 2022"]
[White "Rasulov, Vugar"]
[Black "Caruana, Fabiano"]
[WhiteFideId "13402390"]
[BlackFideId "2020009"]
[WhiteElo "2560"]
[BlackElo "2744"]
[Result "0-1"]
[Round "04"]
[TimeControl "180+1"]
[Date "2022.04.12"]
[WhiteClock "0:00:01"]
[BlackClock "0:00:08"]

1. d4 {[%clk 0:03:00]}  Nf6 {[%clk 0:02:58]} 2. c4 {[%clk 0:03:01]}  e6 {[%clk 0:02:59]} 3. Nc3 {[%clk 0:03:01]}  Bb4 {[%clk 0:02:59]} 4. Bd2 {[%clk 0:03:02]}  c5 {[%clk 0:02:58]} 5. a3 {[%clk 0:03:00]}  Bxc3 {[%clk 0:02:58]} 6. Bxc3 {[%clk 0:03:01]}  Ne4 {[%clk 0:02:59]} 7. Qd3 {[%clk 0:02:56]}  Nxc3 {[%clk 0:02:58]} 8. Qxc3 {[%clk 0:02:57]}  cxd4 {[%clk 0:02:57]} 9. Qxd4 {[%clk 0:02:58]}  O-O {[%clk 0:02:57]} 10. Nf3 {[%clk 0:02:54]}  Nc6 {[%clk 0:02:54]} 11. Qd6 {[%clk 0:02:53]}  b6 {[%clk 0:02:53]} 12. e3 {[%clk 0:02:52]}  Bb7 {[%clk 0:02:47]} 13. Be2 {[%clk 0:02:49]}  Rc8 {[%clk 0:02:46]} 14. O-O-O {[%clk 0:02:43]}  Na5 {[%clk 0:02:34]} 15. Qxd7 {[%clk 0:02:33]}  Be4 {[%clk 0:02:29]} 16. Qb5 {[%clk 0:02:08]}  Qf6 {[%clk 0:01:53]} 17. Qb4 {[%clk 0:01:41]}  Rc7 {[%clk 0:01:11]} 18. Qc3 {[%clk 0:01:30]}  Rfc8 {[%clk 0:01:08]} 19. Rd4 {[%clk 0:01:23]}  Bd5 {[%clk 0:00:56]} 20. b3 {[%clk 0:01:11]}  Bxf3 {[%clk 0:00:31]} 21. gxf3 {[%clk 0:00:51]}  Nc6 {[%clk 0:00:27]} 22. Rd3 {[%clk 0:00:44]}  Ne5 {[%clk 0:00:27]} 23. Rd4 {[%clk 0:00:38]}  Nxf3 {[%clk 0:00:20]} 24. Bxf3 {[%clk 0:00:38]}  Qxf3 {[%clk 0:00:20]} 25. Rhd1 {[%clk 0:00:39]}  h6 {[%clk 0:00:20]} 26. Qc2 {[%clk 0:00:38]}  f5 {[%clk 0:00:17]} 27. e4 {[%clk 0:00:28]}  b5 {[%clk 0:00:16]} 28. exf5 {[%clk 0:00:27]}  exf5 {[%clk 0:00:16]} 29. R1d3 {[%clk 0:00:18]}  Qh5 {[%clk 0:00:10]} 30. h4 {[%clk 0:00:14]}  bxc4 {[%clk 0:00:10]} 31. bxc4 {[%clk 0:00:14]}  Kh7 {[%clk 0:00:09]} 32. Kb2 {[%clk 0:00:12]}  Qf7 {[%clk 0:00:09]} 33. Rc3 {[%clk 0:00:12]}  Qf6 {[%clk 0:00:10]} 34. Qd3 {[%clk 0:00:09]}  Rb7+ {[%clk 0:00:10]} 35. Rb3 {[%clk 0:00:07]}  Rd8 {[%clk 0:00:08]} 36. Rxb7 {[%clk 0:00:07]}  Rxd4 {[%clk 0:00:08]} 37. Qc3 {[%clk 0:00:07]}  Qxh4 {[%clk 0:00:08]} 38. Kb3 {[%clk 0:00:06]}  Qxf2 {[%clk 0:00:08]} 39. Rxa7 {[%clk 0:00:04]}  Qf4 {[%clk 0:00:08]} 40. Rb7 {[%clk 0:00:01]}  Qe4 {[%clk 0:00:08]} 0-1


[Site "https://www.chess.com"]

[Event "Titled Tuesday Blitz April 12 Late 2022"]
[White "Rustemov, Alexander"]
[Black "Romanchuk, Viktor"]
[WhiteFideId "4119002"]
[BlackFideId "14109271"]
[WhiteElo "2794"]
[BlackElo "2242"]
[Result "1-0"]
[Round "04"]
[TimeControl "180+1"]
[Date "2022.04.12"]
[WhiteClock "0:00:26"]
[BlackClock "0:00:16"]

1. Nf3 {[%clk 0:03:00]}  d5 {[%clk 0:02:59]} 2. d4 {[%clk 0:03:00]}  Nf6 {[%clk 0:02:58]} 3. c4 {[%clk 0:02:58]}  c6 {[%clk 0:02:59]} 4. Qc2 {[%clk 0:02:57]}  dxc4 {[%clk 0:02:58]} 5. Qxc4 {[%clk 0:02:57]}  Bf5 {[%clk 0:02:58]} 6. g3 {[%clk 0:02:56]}  e6 {[%clk 0:02:58]} 7. Bg2 {[%clk 0:02:57]}  Nbd7 {[%clk 0:02:59]} 8. O-O {[%clk 0:02:56]}  Be7 {[%clk 0:03:00]} 9. e3 {[%clk 0:02:55]}  O-O {[%clk 0:03:00]} 10. Qe2 {[%clk 0:02:54]}  Ne4 {[%clk 0:02:58]} 11. Rd1 {[%clk 0:02:48]}  Qc7 {[%clk 0:02:57]} 12. Ne1 {[%clk 0:02:43]}  e5 {[%clk 0:02:53]} 13. f3 {[%clk 0:02:42]}  Nef6 {[%clk 0:02:26]} 14. e4 {[%clk 0:02:42]}  Be6 {[%clk 0:02:26]} 15. Be3 {[%clk 0:02:38]}  exd4 {[%clk 0:02:06]} 16. Bxd4 {[%clk 0:02:38]}  Bc5 {[%clk 0:02:07]} 17. Bxc5 {[%clk 0:02:33]}  Nxc5 {[%clk 0:02:07]} 18. Nc3 {[%clk 0:02:31]}  Rad8 {[%clk 0:02:06]} 19. Qe3 {[%clk 0:02:23]}  b6 {[%clk 0:01:47]} 20. Bf1 {[%clk 0:02:19]}  Rxd1 {[%clk 0:01:46]} 21. Rxd1 {[%clk 0:02:19]}  Rd8 {[%clk 0:01:46]} 22. Rd2 {[%clk 0:02:10]}  Rxd2 {[%clk 0:01:42]} 23. Qxd2 {[%clk 0:02:10]}  Qd7 {[%clk 0:01:42]} 24. Qxd7 {[%clk 0:02:09]}  Ncxd7 {[%clk 0:01:42]} 25. Kf2 {[%clk 0:02:08]}  Kf8 {[%clk 0:01:39]} 26. Ke3 {[%clk 0:02:08]}  Ke7 {[%clk 0:01:39]} 27. Nd3 {[%clk 0:01:57]}  Bc4 {[%clk 0:01:24]} 28. b3 {[%clk 0:01:51]}  Ba6 {[%clk 0:01:24]} 29. Be2 {[%clk 0:01:48]}  Ne8 {[%clk 0:01:12]} 30. f4 {[%clk 0:01:45]}  f6 {[%clk 0:01:11]} 31. Bg4 {[%clk 0:01:24]}  Nd6 {[%clk 0:01:00]} 32. Nb4 {[%clk 0:01:22]}  Bb7 {[%clk 0:00:59]} 33. Bf3 {[%clk 0:01:17]}  Kd8 {[%clk 0:00:41]} 34. h4 {[%clk 0:01:16]}  Kc7 {[%clk 0:00:40]} 35. Nd3 {[%clk 0:01:13]}  Nf7 {[%clk 0:00:38]} 36. Bh5 {[%clk 0:01:12]}  Nd6 {[%clk 0:00:38]} 37. Bg4 {[%clk 0:01:08]}  Nf7 {[%clk 0:00:35]} 38. Be6 {[%clk 0:01:07]}  Nd8 {[%clk 0:00:36]} 39. Bg8 {[%clk 0:01:06]}  h6 {[%clk 0:00:35]} 40. b4 {[%clk 0:01:03]}  Kd6 {[%clk 0:00:33]} 41. a3 {[%clk 0:01:02]}  Ne6 {[%clk 0:00:33]} 42. g4 {[%clk 0:00:52]}  Ke7 {[%clk 0:00:32]} 43. Bxe6 {[%clk 0:00:41]}  Kxe6 {[%clk 0:00:32]} 44. f5+ {[%clk 0:00:41]}  Kd6 {[%clk 0:00:30]} 45. Kf4 {[%clk 0:00:41]}  Ba6 {[%clk 0:00:28]} 46. Ne1 {[%clk 0:00:38]}  Ne5 {[%clk 0:00:27]} 47. Nf3 {[%clk 0:00:38]}  Nxf3 {[%clk 0:00:26]} 48. Kxf3 {[%clk 0:00:38]}  c5 {[%clk 0:00:24]} 49. b5 {[%clk 0:00:34]}  Bb7 {[%clk 0:00:24]} 50. Kf4 {[%clk 0:00:33]}  Ba8 {[%clk 0:00:21]} 51. g5 {[%clk 0:00:32]}  hxg5+ {[%clk 0:00:20]} 52. hxg5 {[%clk 0:00:33]}  Bb7 {[%clk 0:00:21]} 53. a4 {[%clk 0:00:31]}  Ba8 {[%clk 0:00:21]} 54. g6 {[%clk 0:00:32]}  Bb7 {[%clk 0:00:21]} 55. Ne2 {[%clk 0:00:32]}  c4 {[%clk 0:00:19]} 56. Ng3 {[%clk 0:00:32]}  c3 {[%clk 0:00:18]} 57. Ke3 {[%clk 0:00:32]}  Ke5 {[%clk 0:00:18]} 58. Nh5 {[%clk 0:00:27]}  Bxe4 {[%clk 0:00:17]} 59. Nxg7 {[%clk 0:00:27]}  Bxf5 {[%clk 0:00:17]} 60. Nxf5 {[%clk 0:00:26]}  Kxf5 {[%clk 0:00:16]} 61. g7 {[%clk 0:00:26]} 1-0


[Site "https://www.chess.com"]

[Event "Titled Tuesday Blitz April 12 Late 2022"]
[White "Sadilek, Peter"]
[Black "Pinheiro, Iung Alicio de O."]
[WhiteFideId "1616439"]
[BlackFideId "2104350"]
[WhiteElo "2145"]
[BlackElo "2535"]
[Result "1-0"]
[Round "04"]
[TimeControl "180+1"]
[Date "2022.04.13"]
[WhiteClock "0:00:04"]
[BlackClock "0:00:05"]

1. d4 {[%clk 0:02:57]}  Nf6 {[%clk 0:02:59]} 2. Nf3 {[%clk 0:02:57]}  g6 {[%clk 0:02:59]} 3. c4 {[%clk 0:02:58]}  Bg7 {[%clk 0:02:59]} 4. Nc3 {[%clk 0:02:58]}  O-O {[%clk 0:02:58]} 5. e4 {[%clk 0:02:58]}  d6 {[%clk 0:02:59]} 6. Be2 {[%clk 0:02:59]}  Na6 {[%clk 0:02:58]} 7. O-O {[%clk 0:02:59]}  e5 {[%clk 0:02:59]} 8. d5 {[%clk 0:03:00]}  Nc5 {[%clk 0:02:59]} 9. Qc2 {[%clk 0:03:01]}  a5 {[%clk 0:02:59]} 10. Bg5 {[%clk 0:03:01]}  h6 {[%clk 0:02:58]} 11. Be3 {[%clk 0:03:02]}  Nfd7 {[%clk 0:02:46]} 12. Nd2 {[%clk 0:03:02]}  f5 {[%clk 0:02:42]} 13. f3 {[%clk 0:03:02]}  h5 {[%clk 0:02:23]} 14. b3 {[%clk 0:02:34]}  Kh7 {[%clk 0:02:21]} 15. a3 {[%clk 0:02:33]}  Bh6 {[%clk 0:02:20]} 16. Bxh6 {[%clk 0:02:32]}  Kxh6 {[%clk 0:02:21]} 17. b4 {[%clk 0:02:32]}  Na6 {[%clk 0:02:21]} 18. Nb3 {[%clk 0:02:15]}  axb4 {[%clk 0:01:50]} 19. axb4 {[%clk 0:02:13]}  Qg5 {[%clk 0:01:50]} 20. Qc1 {[%clk 0:01:58]}  Qxc1 {[%clk 0:01:43]} 21. Rfxc1 {[%clk 0:01:59]}  Nb6 {[%clk 0:01:43]} 22. c5 {[%clk 0:01:51]}  dxc5 {[%clk 0:01:42]} 23. bxc5 {[%clk 0:01:50]}  Nd7 {[%clk 0:01:41]} 24. Nb5 {[%clk 0:01:22]}  Rb8 {[%clk 0:01:34]} 25. c6 {[%clk 0:01:12]}  bxc6 {[%clk 0:01:18]} 26. Rxc6 {[%clk 0:01:13]}  Nb4 {[%clk 0:01:18]} 27. Rxc7 {[%clk 0:01:13]}  fxe4 {[%clk 0:01:15]} 28. fxe4 {[%clk 0:01:13]}  Nf6 {[%clk 0:01:14]} 29. Nc5 {[%clk 0:00:58]}  Bg4 {[%clk 0:00:44]} 30. Bf1 {[%clk 0:00:42]}  Nc2 {[%clk 0:00:40]} 31. Rc1 {[%clk 0:00:20]}  Ne3 {[%clk 0:00:36]} 32. Nd6 {[%clk 0:00:17]}  Rb2 {[%clk 0:00:24]} 33. Nf7+ {[%clk 0:00:14]}  Kg7 {[%clk 0:00:12]} 34. Nxe5+ {[%clk 0:00:14]}  Kh6 {[%clk 0:00:12]} 35. h3 {[%clk 0:00:11]}  Be2 {[%clk 0:00:12]} 36. Ncd3 {[%clk 0:00:07]}  Rd2 {[%clk 0:00:10]} 37. Bxe2 {[%clk 0:00:05]}  Rxe2 {[%clk 0:00:11]} 38. Nf4 {[%clk 0:00:06]}  Ra2 {[%clk 0:00:10]} 39. Nf7+ {[%clk 0:00:05]}  Kg7 {[%clk 0:00:09]} 40. Ng5+ {[%clk 0:00:06]}  Kh6 {[%clk 0:00:08]} 41. Nf7+ {[%clk 0:00:06]}  Rxf7 {[%clk 0:00:08]} 42. Rxf7 {[%clk 0:00:06]}  Nxe4 {[%clk 0:00:09]} 43. Re1 {[%clk 0:00:04]}  g5 {[%clk 0:00:04]} 44. Rxe3 {[%clk 0:00:04]}  Ra1+ {[%clk 0:00:04]} 45. Kh2 {[%clk 0:00:04]}  Nd6 {[%clk 0:00:05]} 46. Re6# {[%clk 0:00:04]} 1-0


[Site "https://www.chess.com"]

[Event "Titled Tuesday Blitz April 12 Late 2022"]
[White "Sailer, Mike"]
[Black "Hoffmann, Asa"]
[WhiteFideId "2012901"]
[BlackFideId "2001470"]
[WhiteElo "2109"]
[BlackElo "2117"]
[Result "1-0"]
[Round "04"]
[TimeControl "180+1"]
[Date "2022.04.13"]
[WhiteClock "0:00:09"]
[BlackClock "0:00:29"]

1. d4 {[%clk 0:02:59]}  Nf6 {[%clk 0:02:58]} 2. Nf3 {[%clk 0:02:54]}  d6 {[%clk 0:02:58]} 3. Bf4 {[%clk 0:02:52]}  Bg4 {[%clk 0:02:54]} 4. e3 {[%clk 0:02:48]}  Nbd7 {[%clk 0:02:54]} 5. Be2 {[%clk 0:02:48]}  c6 {[%clk 0:02:53]} 6. O-O {[%clk 0:02:45]}  Nh5 {[%clk 0:02:51]} 7. Bg5 {[%clk 0:02:44]}  h6 {[%clk 0:02:51]} 8. Bh4 {[%clk 0:02:45]}  g5 {[%clk 0:02:51]} 9. Nfd2 {[%clk 0:02:40]}  Bxe2 {[%clk 0:02:48]} 10. Qxe2 {[%clk 0:02:40]}  Ng7 {[%clk 0:02:48]} 11. Bg3 {[%clk 0:02:40]}  Nf5 {[%clk 0:02:47]} 12. c4 {[%clk 0:02:23]}  Bg7 {[%clk 0:02:46]} 13. Nc3 {[%clk 0:02:23]}  h5 {[%clk 0:02:44]} 14. f3 {[%clk 0:02:19]}  Nxg3 {[%clk 0:02:41]} 15. hxg3 {[%clk 0:02:20]}  e5 {[%clk 0:02:40]} 16. dxe5 {[%clk 0:02:07]}  dxe5 {[%clk 0:02:38]} 17. Rad1 {[%clk 0:02:07]}  Qe7 {[%clk 0:02:38]} 18. Nde4 {[%clk 0:02:05]}  O-O-O {[%clk 0:02:31]} 19. Nd6+ {[%clk 0:01:58]}  Kb8 {[%clk 0:02:31]} 20. Nf5 {[%clk 0:01:59]}  Qf6 {[%clk 0:02:30]} 21. Nxg7 {[%clk 0:01:59]}  Qxg7 {[%clk 0:02:30]} 22. b4 {[%clk 0:01:57]}  f5 {[%clk 0:02:29]} 23. b5 {[%clk 0:01:42]}  c5 {[%clk 0:02:27]} 24. Rd5 {[%clk 0:01:24]}  e4 {[%clk 0:02:24]} 25. Na4 {[%clk 0:01:17]}  Nb6 {[%clk 0:02:15]} 26. Rxd8+ {[%clk 0:01:11]}  Rxd8 {[%clk 0:02:14]} 27. Nxc5 {[%clk 0:01:12]}  Rc8 {[%clk 0:02:00]} 28. Ne6 {[%clk 0:01:06]}  Qe7 {[%clk 0:01:57]} 29. c5 {[%clk 0:00:58]}  Qxe6 {[%clk 0:01:55]} 30. cxb6 {[%clk 0:00:58]}  Qxb6 {[%clk 0:01:55]} 31. fxe4 {[%clk 0:00:54]}  fxe4 {[%clk 0:01:55]} 32. Rf5 {[%clk 0:00:47]}  Rg8 {[%clk 0:01:36]} 33. Qd2 {[%clk 0:00:32]}  Qe6 {[%clk 0:01:31]} 34. Rd5 {[%clk 0:00:27]}  Rc8 {[%clk 0:01:25]} 35. Rd8 {[%clk 0:00:21]}  Qe7 {[%clk 0:01:10]} 36. Rxc8+ {[%clk 0:00:21]}  Kxc8 {[%clk 0:01:10]} 37. Qd5 {[%clk 0:00:16]}  Kc7 {[%clk 0:01:06]} 38. a4 {[%clk 0:00:16]}  Kb6 {[%clk 0:01:06]} 39. Qd4+ {[%clk 0:00:11]}  Ka5 {[%clk 0:01:05]} 40. Qxa7+ {[%clk 0:00:11]}  Kb4 {[%clk 0:01:05]} 41. Qd4+ {[%clk 0:00:09]}  Ka5 {[%clk 0:01:04]} 42. Qa7+ {[%clk 0:00:05]}  Kb4 {[%clk 0:01:04]} 43. Qd4+ {[%clk 0:00:05]}  Kb3 {[%clk 0:01:03]} 44. a5 {[%clk 0:00:05]}  Qa3 {[%clk 0:00:56]} 45. Qd5+ {[%clk 0:00:04]}  Kc3 {[%clk 0:00:53]} 46. Qd4+ {[%clk 0:00:03]}  Kb3 {[%clk 0:00:50]} 47. Qd5+ {[%clk 0:00:03]}  Kb2 {[%clk 0:00:49]} 48. Qxb7 {[%clk 0:00:03]}  Qxa5 {[%clk 0:00:48]} 49. b6 {[%clk 0:00:03]}  Qe1+ {[%clk 0:00:47]} 50. Kh2 {[%clk 0:00:04]}  h4 {[%clk 0:00:47]} 51. Qxe4 {[%clk 0:00:03]}  Qxg3+ {[%clk 0:00:46]} 52. Kg1 {[%clk 0:00:04]}  Qe1+ {[%clk 0:00:45]} 53. Kh2 {[%clk 0:00:05]}  Qg3+ {[%clk 0:00:35]} 54. Kh1 {[%clk 0:00:05]}  h3 {[%clk 0:00:34]} 55. Qd4+ {[%clk 0:00:06]}  Kc2 {[%clk 0:00:33]} 56. Qc4+ {[%clk 0:00:06]}  Kd2 {[%clk 0:00:32]} 57. Qd4+ {[%clk 0:00:06]}  Ke2 {[%clk 0:00:33]} 58. Qc4+ {[%clk 0:00:06]}  Kxe3 {[%clk 0:00:32]} 59. Qc3+ {[%clk 0:00:07]}  Kf2 {[%clk 0:00:32]} 60. Qxg3+ {[%clk 0:00:07]}  Kxg3 {[%clk 0:00:31]} 61. gxh3 {[%clk 0:00:08]}  Kxh3 {[%clk 0:00:30]} 62. b7 {[%clk 0:00:08]}  g4 {[%clk 0:00:30]} 63. b8=Q {[%clk 0:00:08]}  g3 {[%clk 0:00:30]} 64. Kg1 {[%clk 0:00:08]}  g2 {[%clk 0:00:30]} 65. Qh8+ {[%clk 0:00:08]}  Kg3 {[%clk 0:00:29]} 66. Qg8+ {[%clk 0:00:09]} 1-0


[Site "https://www.chess.com"]

[Event "Titled Tuesday Blitz April 12 Late 2022"]
[White "Sanchez, Robert"]
[Black "Wieczorek, Oskar"]
[WhiteFideId "2034360"]
[BlackFideId "1133950"]
[WhiteElo "2389"]
[BlackElo "2319"]
[Result "0-1"]
[Round "04"]
[TimeControl "180+1"]
[Date "2022.04.13"]
[WhiteClock "0:01:01"]
[BlackClock "0:00:53"]

1. e4 {[%clk 0:03:00]}  c5 {[%clk 0:02:59]} 2. Nf3 {[%clk 0:03:01]}  d6 {[%clk 0:02:59]} 3. d4 {[%clk 0:03:01]}  cxd4 {[%clk 0:03:00]} 4. Nxd4 {[%clk 0:03:02]}  Nf6 {[%clk 0:03:00]} 5. Nc3 {[%clk 0:03:02]}  Nc6 {[%clk 0:03:01]} 6. f3 {[%clk 0:03:02]}  e5 {[%clk 0:02:59]} 7. Nb3 {[%clk 0:03:02]}  Be7 {[%clk 0:02:59]} 8. Be3 {[%clk 0:03:03]}  O-O {[%clk 0:03:00]} 9. Qd2 {[%clk 0:03:03]}  a5 {[%clk 0:02:58]} 10. a4 {[%clk 0:03:03]}  Nb4 {[%clk 0:02:57]} 11. O-O-O {[%clk 0:03:01]}  Be6 {[%clk 0:02:57]} 12. Kb1 {[%clk 0:02:59]}  d5 {[%clk 0:02:49]} 13. exd5 {[%clk 0:02:58]}  Nfxd5 {[%clk 0:02:50]} 14. Nxd5 {[%clk 0:02:58]}  Bxd5 {[%clk 0:02:25]} 15. Bb5 {[%clk 0:02:13]}  Qc8 {[%clk 0:02:17]} 16. Rc1 {[%clk 0:01:45]}  Rd8 {[%clk 0:02:13]} 17. Qf2 {[%clk 0:01:42]}  Qf5 {[%clk 0:02:07]} 18. Nc5 {[%clk 0:01:32]}  Rac8 {[%clk 0:01:23]} 19. Ne4 {[%clk 0:01:25]}  Bxe4 {[%clk 0:01:06]} 20. fxe4 {[%clk 0:01:26]}  Qxe4 {[%clk 0:01:07]} 21. Bb6 {[%clk 0:01:13]}  Qd5 {[%clk 0:01:01]} 22. b3 {[%clk 0:01:06]}  Rxc2 {[%clk 0:00:54]} 23. Rxc2 {[%clk 0:01:02]}  Qxb3+ {[%clk 0:00:54]} 24. Rb2 {[%clk 0:01:01]}  Rd1+ {[%clk 0:00:53]} 0-1


[Site "https://www.chess.com"]